bitfinex-derivatives/quotes_BTCF0:USTF0_20251030
["timestamp","ask_amount","ask_price","bid_price","bid_amount"]
[1761851909278,0.44092082,106880.0,106870.0,0.0666]
[1761851909773,0.06669,106870.0,106860.0,0.0666]
[1761851910075,0.07832,106860.0,106850.0,0.0666]
[1761851910271,0.41832,106860.0,106850.0,0.0666]
[1761851911370,0.42332,106860.0,106850.0,0.0666]
[1761851911870,0.41169,106860.0,106850.0,0.0666]
[1761851912671,0.345,106860.0,106850.0,0.0666]
[1761851912872,0.347,106860.0,106850.0,0.0666]
[1761851913179,0.007,106860.0,106850.0,0.42839639]
[1761851913576,0.09369,106860.0,106850.0,0.0666]
[1761851913969,0.07369,106860.0,106850.0,0.1001991]
[1761851914170,0.09369,106860.0,106850.0,0.1001991]
[1761851914365,0.04028,106860.0,106850.0,0.1001991]
[1761851914576,0.04028,106860.0,106850.0,0.0666]
[1761851914778,0.007,106860.0,106850.0,0.0666]
[1761851914980,0.007,106860.0,106850.0,0.42839639]
[1761851915381,0.007,106860.0,106850.0,0.46199838]
[1761851915573,0.007,106860.0,106850.0,0.60600957]
[1761851915880,0.00198313,106860.0,106850.0,0.57520758]
[1761851916082,0.15569111,106880.0,106870.0,0.0666]
[1761851916271,0.06669,106880.0,106870.0,0.0666]
[1761851916574,0.05328,106880.0,106870.0,0.0666]
[1761851916775,0.21049714,106900.0,106890.0,0.0666]
[1761851916972,0.06669,106890.0,106880.0,0.08723]
[1761851917279,0.08669,106890.0,106880.0,0.08723]
[1761851917475,0.28669,106890.0,106880.0,0.0666]
[1761851917979,0.39669,106890.0,106880.0,0.0666]
[1761851918380,0.39669,106890.0,106860.0,0.70802639]
[1761851918381,0.03328,106870.0,106860.0,0.74115639]
[1761851918679,0.06669,106880.0,106870.0,0.0666]
[1761851918982,0.34669,106880.0,106870.0,0.0666]
[1761851919881,0.35069,106880.0,106870.0,0.0666]
[1761851920572,0.36599984,106880.0,106870.0,0.0666]
[1761851920878,0.004,106880.0,106870.0,0.42839639]
[1761851921082,0.14235697,106900.0,106890.0,0.08653]
[1761851921377,0.14235697,106900.0,106890.0,0.0666]
[1761851921378,0.18124697,106900.0,106890.0,0.0666]
[1761851921774,0.16235697,106900.0,106890.0,0.08723]
[1761851921974,0.03328,106900.0,106890.0,0.44902639]
[1761851922176,0.08669,106900.0,106890.0,0.08723]
[1761851922774,0.08869,106900.0,106890.0,0.08723]
[1761851922973,0.06869,106900.0,106890.0,0.08723]
[1761851923174,0.40869,106900.0,106890.0,0.08723]
[1761851923581,0.07269,106900.0,106890.0,0.08723]
[1761851923782,0.09269,106900.0,106890.0,0.08723]
[1761851923983,0.04912,106900.0,106890.0,0.08723]
[1761851924185,0.06464325,106900.0,106890.0,0.08723]
[1761851926284,0.01552325,106900.0,106890.0,0.08723]
[1761851926482,0.02,106900.0,106890.0,0.08723]
[1761851926684,0.32,106900.0,106890.0,0.08723]
[1761851926982,0.33456,106900.0,106890.0,0.08723]
[1761851927184,0.34912,106900.0,106890.0,0.08723]
[1761851929183,0.36513369,106900.0,106890.0,0.08723]
[1761851930074,0.02912,106890.0,106880.0,0.41209]
[1761851930389,0.36912,106890.0,106880.0,0.41209]
[1761851936190,0.26912,106890.0,106880.0,0.41209]
[1761851943791,0.16912,106890.0,106880.0,0.41209]
[1761851944791,0.04096746,106900.0,106890.0,0.08041]
[1761851944994,0.37096746,106900.0,106890.0,0.08041]
[1761851945893,0.47091686,106900.0,106890.0,0.08041]
[1761851946201,0.48205341,106900.0,106880.0,0.08217]
[1761851946396,0.39804229,106890.0,106870.0,0.03846156]
[1761851946699,0.39804229,106890.0,106860.0,0.11646241]
[1761851946700,0.06044,106870.0,106860.0,0.11646241]
[1761851946898,0.38044,106870.0,106860.0,0.11646241]
[1761851948195,0.35036,106870.0,106860.0,0.4782588]
[1761851948397,0.32,106870.0,106860.0,0.4782588]
[1761851948699,0.06044,106890.0,106880.0,0.08041]
[1761851948899,0.40044,106890.0,106880.0,0.08041]
[1761851949301,0.06044,106880.0,106870.0,0.11405634]
[1761851949600,0.35402545,106880.0,106870.0,0.11405634]
[1761851949794,0.28044,106880.0,106870.0,0.11405634]
[1761851949992,0.10036,106880.0,106870.0,0.11405634]
[1761851950190,0.28044,106880.0,106870.0,0.11405634]
[1761851950590,0.28044,106880.0,106870.0,0.11505634]
[1761851950996,0.03044,106880.0,106870.0,0.11505634]
[1761851951198,0.32,106880.0,106870.0,0.11505634]
[1761851951699,0.1,106880.0,106870.0,0.11505634]
[1761851952701,0.1,106880.0,106870.0,0.11705634]
[1761851952890,0.1,106880.0,106870.0,0.47885273]
[1761851953090,0.36649959,106900.0,106890.0,0.08041]
[1761851953292,0.64649959,106900.0,106890.0,0.08041]
[1761851953599,0.62149369,106900.0,106890.0,0.08041]
[1761851953994,0.72144309,106900.0,106890.0,0.04934]
[1761851954196,0.62149369,106900.0,106890.0,0.04934]
[1761851954401,0.64649959,106900.0,106890.0,0.01817]
[1761851954698,0.64649959,106900.0,106880.0,0.08041]
[1761851954886,0.64649959,106900.0,106890.0,0.01817]
[1761851955090,0.64649959,106900.0,106890.0,0.08041]
[1761851955801,0.74644899,106900.0,106890.0,0.08041]
[1761851956691,0.32101959,106900.0,106890.0,0.08041]
[1761851960197,0.65681369,106900.0,106890.0,0.08041]
[1761851961102,1.25681369,106900.0,106890.0,0.03117]
[1761851961288,1.25681369,106900.0,106890.0,0.04947]
[1761851961489,1.28181959,106900.0,106890.0,0.0817]
[1761851962101,0.68181959,106900.0,106880.0,0.11658634]
[1761851962397,0.3608,106890.0,106880.0,0.11658634]
[1761851962603,0.6508,106890.0,106880.0,0.08294]
[1761851963406,0.6508,106890.0,106880.0,0.08394]
[1761851963900,0.7507494,106890.0,106880.0,0.08394]
[1761851964499,0.7507494,106890.0,106880.0,0.01917]
[1761851964696,0.7507494,106890.0,106880.0,0.05184]
[1761851964896,0.6508,106890.0,106880.0,0.05184]
[1761851965400,0.6508,106890.0,106880.0,0.08407]
[1761851966306,0.7507494,106890.0,106880.0,0.08407]
[1761851966507,0.6508,106890.0,106880.0,0.08407]
[1761851966902,0.6758059,106890.0,106880.0,0.08407]
[1761851967306,0.70909622,106890.0,106880.0,0.08407]
[1761851968094,0.80904562,106890.0,106880.0,0.08407]
[1761851969706,1.96867678,106890.0,106880.0,0.001]
[1761851970299,2.01866803,106890.0,106880.0,0.001]
[1761851970707,1.41866803,106890.0,106860.0,0.0854]
[1761851971006,0.3608,106870.0,106860.0,0.0854]
[1761851971192,0.6408,106870.0,106860.0,0.0854]
[1761851971596,0.28,106870.0,106860.0,0.33179706]
[1761851971901,0.28,106870.0,106860.0,0.93179706]
[1761851972101,0.6408,106870.0,106860.0,0.0854]
[1761851972706,0.28,106870.0,106860.0,0.0854]
[1761851972912,0.28,106870.0,106860.0,0.0894]
[1761851973411,0.18,106870.0,106860.0,0.0894]
[1761851973613,0.5408,106870.0,106860.0,0.0894]
[1761851973910,0.18,106870.0,106860.0,0.4502]
[1761851974110,0.18,106870.0,106860.0,0.69659706]
[1761851975512,0.18,106870.0,106860.0,0.33579706]
[1761851976010,0.5408,106870.0,106860.0,0.0894]
[1761851976911,0.5408,106870.0,106860.0,0.12304634]
[1761851978106,0.18,106870.0,106860.0,0.12304634]
[1761851978613,0.5408,106870.0,106860.0,0.12304634]
[1761851979711,0.18,106870.0,106860.0,0.12304634]
[1761851980812,0.18,106870.0,106860.0,0.3694434]
[1761851981313,0.18,106870.0,106860.0,0.51743244]
[1761851982314,0.4364957,106880.0,106870.0,0.08307]
[1761851982510,0.4364957,106880.0,106870.0,0.28026305]
[1761851982709,0.7464957,106880.0,106870.0,0.28026305]
[1761851982902,0.7464957,106880.0,106870.0,0.08307]
[1761851983115,0.94368875,106880.0,106870.0,0.28026305]
[1761851983715,0.94368875,106880.0,106870.0,0.28126305]
[1761851984217,0.7464957,106880.0,106870.0,0.28126305]
[1761851986919,0.7464957,106880.0,106870.0,0.08407]
[1761851987108,0.7464957,106880.0,106870.0,0.28126305]
[1761851988520,0.3856957,106880.0,106870.0,0.31490939]
[1761851989218,0.3856957,106880.0,106870.0,0.67570939]
[1761851989417,0.3856957,106880.0,106870.0,0.31490939]
[1761851989719,0.1456957,106880.0,106870.0,0.36529801]
[1761851990112,0.1456957,106880.0,106870.0,0.72609801]
[1761851990308,0.1456957,106880.0,106870.0,0.36529801]
[1761851990718,0.0456957,106880.0,106870.0,0.36529801]
[1761851991019,0.4064957,106880.0,106870.0,0.36629801]
[1761851991219,0.0456957,106880.0,106870.0,0.31790939]
[1761851991621,0.0456957,106880.0,106870.0,0.72909801]
[1761851992114,0.59901629,106900.0,106890.0,0.08153]
[1761851992115,0.48609439,106900.0,106890.0,0.08153]
[1761851992314,0.4108,106900.0,106890.0,0.27872305]
[1761851992516,0.3808,106900.0,106890.0,0.08153]
[1761851992720,0.4408,106900.0,106890.0,0.27872305]
[1761851993118,0.6908,106900.0,106890.0,0.27872305]
[1761851993417,0.70650068,106900.0,106890.0,0.27872305]
[1761851996822,0.01570068,106900.0,106890.0,0.27872305]
[1761851997027,0.6862,106910.0,106900.0,0.07958]
[1761851997218,0.9862,106910.0,106900.0,0.27677305]
[1761851997417,0.85799305,106910.0,106900.0,0.27677305]
[1761851997617,0.67707747,106910.0,106900.0,0.27677305]
[1761851998018,0.57707747,106910.0,106900.0,0.27677305]
[1761851999419,0.57707747,106910.0,106900.0,0.27777305]
[1761851999924,0.77427052,106910.0,106900.0,0.27777305]
[1761852000123,0.77427052,106910.0,106900.0,0.08058]
[1761852000319,0.87421992,106910.0,106900.0,0.001]
[1761852000521,1.08141297,106910.0,106900.0,0.001]
[1761852000711,1.43174709,106910.0,106900.0,0.001]
[1761852000914,1.43454709,106910.0,106900.0,0.001]
[1761852001625,1.43174709,106910.0,106900.0,0.001]
[1761852002221,1.43454709,106910.0,106900.0,0.001]
[1761852002522,1.75789318,106910.0,106900.0,0.001]
[1761852002726,1.78281454,106910.0,106900.0,0.001]
[1761852003026,1.73287906,106910.0,106900.0,0.001]
[1761852003221,3.03006626,106910.0,106870.0,0.07862]
[1761852003422,0.7551861,106880.0,106860.0,0.02495758]
[1761852003620,0.7551861,106880.0,106860.0,0.01926]
[1761852003621,0.55799305,106870.0,106860.0,0.01926]
[1761852003818,0.83799305,106870.0,106850.0,0.27677305]
[1761852004019,0.55799305,106860.0,106850.0,0.07958]
[1761852004219,0.88799305,106860.0,106850.0,0.07958]
[1761852004421,1.0851861,106860.0,106840.0,0.21645305]
[1761852004724,0.88799305,106860.0,106850.0,0.07958]
[1761852005333,0.6908,106860.0,106850.0,0.08858]
[1761852005521,0.7907494,106860.0,106850.0,0.08858]
[1761852006127,0.7907494,106860.0,106850.0,0.09458]
[1761852006430,0.4308,106860.0,106850.0,0.3411737]
[1761852006830,0.07,106860.0,106850.0,0.09458]
[1761852007037,0.28,106860.0,106850.0,0.09458]
[1761852008139,0.3799494,106860.0,106850.0,0.09458]
[1761852008526,0.28,106860.0,106850.0,0.09458]
[1761852008728,0.6408,106860.0,106850.0,0.09458]
[1761852010031,0.28,106860.0,106850.0,0.7019737]
[1761852010239,0.28,106860.0,106850.0,0.09458]
[1761852010539,0.18,106860.0,106850.0,0.45538]
[1761852010833,0.18,106860.0,106850.0,0.09458]
[1761852013830,0.5408,106860.0,106850.0,0.09458]
[1761852014443,0.18,106860.0,106850.0,0.09458]
[1761852014835,0.18,106860.0,106850.0,0.45538]
[1761852015234,0.18,106860.0,106850.0,0.09458]
[1761852015634,0.18,106860.0,106850.0,0.7019737]
[1761852015834,0.18,106860.0,106850.0,0.3411737]
[1761852016038,0.18,106860.0,106850.0,0.09458]
[1761852016346,0.5408,106860.0,106850.0,0.09458]
[1761852016739,0.18,106860.0,106850.0,0.09458]
[1761852017145,0.5408,106860.0,106850.0,0.09458]
[1761852018634,0.6407494,106860.0,106850.0,0.09458]
[1761852018839,0.5408,106860.0,106850.0,0.09458]
[1761852020440,0.6407494,106860.0,106850.0,0.09458]
[1761852021147,0.6407494,106860.0,106850.0,0.015]
[1761852021449,0.9760694,106860.0,106850.0,0.015]
[1761852021747,0.99744196,106860.0,106850.0,0.015]
[1761852021950,0.99744196,106860.0,106850.0,0.03239]
[1761852022145,1.60024196,106860.0,106850.0,0.015]
[1761852022347,2.15187269,106860.0,106850.0,0.015]
[1761852022542,1.61187269,106860.0,106830.0,0.09967592]
[1761852022745,0.3608,106840.0,106830.0,0.04046592]
[1761852023044,1.02612,106840.0,106830.0,0.02120592]
[1761852023457,1.47171595,106840.0,106830.0,0.02120592]
[1761852023641,1.56166535,106840.0,106830.0,0.02120592]
[1761852023846,1.9446664,106840.0,106830.0,0.02220592]
[1761852024049,1.9574664,106840.0,106830.0,0.02220592]
[1761852024850,1.9546664,106840.0,106830.0,0.02220592]
[1761852025355,1.854717,106840.0,106830.0,0.02220592]
[1761852026044,1.857517,106840.0,106830.0,0.02220592]
[1761852026246,1.854717,106840.0,106830.0,0.02220592]
[1761852026446,1.9546664,106840.0,106830.0,0.02220592]
[1761852027251,1.48307747,106840.0,106830.0,0.02220592]
[1761852027560,1.15775747,106840.0,106830.0,0.09880592]
[1761852027757,1.48311747,106840.0,106830.0,0.09880592]
[1761852027946,1.38311747,106840.0,106830.0,0.29617636]
[1761852028145,1.58048791,106840.0,106830.0,0.06876592]
[1761852028355,1.58048791,106840.0,106830.0,0.02220592]
[1761852028554,1.59048791,106840.0,106830.0,0.02220592]
[1761852028855,1.58048791,106840.0,106830.0,0.02220592]
[1761852029152,1.59328791,106840.0,106830.0,0.02220592]
[1761852029347,1.85498086,106840.0,106830.0,0.02220592]
[1761852030258,1.86778086,106840.0,106830.0,0.02220592]
[1761852030450,1.86778086,106840.0,106810.0,0.01739]
[1761852030645,0.3608,106820.0,106810.0,0.04743]
[1761852030848,0.6708,106820.0,106810.0,0.0766]
[1761852031552,0.6708,106820.0,106810.0,0.01839]
[1761852031754,0.7707494,106820.0,106810.0,0.01839]
[1761852031956,0.7707494,106820.0,106810.0,0.04843]
[1761852032554,0.6708,106820.0,106810.0,0.0786]
[1761852033149,0.31,106820.0,106810.0,0.0786]
[1761852033551,0.31,106820.0,106810.0,0.0776]
[1761852033857,0.31,106820.0,106810.0,0.0786]
[1761852034361,0.31,106820.0,106810.0,0.4394]
[1761852034563,0.6708,106820.0,106810.0,0.0786]
[1761852034768,0.31,106820.0,106810.0,0.0786]
[1761852035155,0.32572691,106820.0,106810.0,0.0786]
[1761852035356,0.32572691,106820.0,106810.0,0.4394]
[1761852035560,0.32572691,106820.0,106810.0,0.0786]
[1761852036059,0.32572691,106820.0,106810.0,0.4394]
[1761852036361,0.68652691,106820.0,106810.0,0.0786]
[1761852036562,0.32572691,106820.0,106810.0,0.0786]
[1761852037058,0.68652691,106820.0,106810.0,0.0786]
[1761852037563,0.32572691,106820.0,106810.0,0.0786]
[1761852038161,0.68652691,106820.0,106810.0,0.0786]
[1761852039364,0.78647631,106820.0,106810.0,0.0786]
[1761852039665,0.68652691,106820.0,106810.0,0.0786]
[1761852040166,0.32572691,106820.0,106810.0,0.0786]
[1761852040369,0.22572691,106820.0,106810.0,0.4394]
[1761852040561,0.22572691,106820.0,106810.0,1.0394]
[1761852041461,0.22572691,106820.0,106810.0,0.4394]
[1761852041659,0.03572691,106820.0,106810.0,0.4394]
[1761852041863,0.03572691,106820.0,106810.0,0.80131399]
[1761852042251,0.01572691,106820.0,106810.0,0.80131399]
[1761852042458,0.76095595,106840.0,106830.0,0.0766]
[1761852042664,1.10231837,106840.0,106830.0,0.0766]
[1761852042871,0.75559595,106840.0,106830.0,0.0766]
[1761852043069,0.39479595,106840.0,106830.0,0.4374]
[1761852043371,0.39479595,106840.0,106830.0,0.0766]
[1761852043761,0.39579595,106840.0,106830.0,0.0766]
[1761852044070,0.41207361,106840.0,106830.0,0.4374]
[1761852044675,0.09207361,106840.0,106830.0,0.4374]
[1761852044857,0.11207361,106840.0,106830.0,0.4374]
[1761852045063,0.11407361,106840.0,106830.0,0.4374]
[1761852045863,0.11207361,106840.0,106830.0,0.4374]
[1761852046165,0.11207361,106840.0,106830.0,0.79931399]
[1761852046366,0.11107361,106840.0,106830.0,0.79931399]
[1761852046681,0.09107361,106840.0,106830.0,0.80211399]
[1761852046867,0.6862,106860.0,106830.0,0.4374]
[1761852047174,1.17755067,106860.0,106850.0,0.0766]
[1761852047363,1.09244104,106860.0,106850.0,0.0766]
[1761852047759,0.76704104,106860.0,106850.0,0.0766]
[1761852047969,0.96703519,106860.0,106850.0,0.0766]
[1761852049774,0.97103519,106860.0,106850.0,0.0766]
[1761852050272,0.97303519,106860.0,106850.0,0.0766]
[1761852050473,1.07298459,106860.0,106850.0,0.0766]
[1761852050667,0.97303519,106860.0,106850.0,0.0766]
[1761852051269,0.70303519,106860.0,106850.0,0.0766]
[1761852051670,0.62303519,106860.0,106850.0,0.0766]
[1761852052376,0.42304104,106860.0,106850.0,0.0766]
[1761852054274,0.74304104,106860.0,106850.0,0.0766]
[1761852055677,0.72163977,106860.0,106850.0,0.0766]
[1761852055870,0.40163977,106860.0,106850.0,0.0766]
[1761852056275,0.57163977,106860.0,106850.0,0.0766]
[1761852057074,0.59306555,106860.0,106850.0,0.0766]
[1761852057973,0.59306555,106860.0,106840.0,0.0783]
[1761852058972,0.69301495,106860.0,106850.0,0.01736]
[1761852059377,0.69201495,106860.0,106850.0,0.01736]
[1761852060281,0.69201495,106860.0,106850.0,0.04773]
[1761852060476,0.69301495,106860.0,106850.0,0.07827]
[1761852060683,0.68901495,106860.0,106850.0,0.07827]
[1761852060879,0.69101495,106860.0,106840.0,0.0783]
[1761852061472,1.08591663,106860.0,106840.0,0.0783]
[1761852061782,1.08991663,106860.0,106840.0,0.0783]
[1761852061980,0.3608,106850.0,106840.0,0.0783]
[1761852062174,0.70222578,106850.0,106840.0,0.0783]
[1761852062579,0.80217518,106850.0,106840.0,0.0783]
[1761852063077,0.80317518,106850.0,106840.0,0.0783]
[1761852063279,0.34242578,106850.0,106840.0,0.0783]
[1761852064193,0.34442578,106850.0,106840.0,0.0783]
[1761852064880,1.06713977,106850.0,106830.0,0.06896592]
[1761852065081,0.70522578,106850.0,106830.0,0.09950592]
[1761852065476,0.80517518,106850.0,106830.0,0.09950592]
[1761852065878,0.80517518,106850.0,106840.0,0.01736]
[1761852066173,0.80417518,106850.0,106840.0,0.01736]
[1761852066784,0.80417518,106850.0,106840.0,0.07827]
[1761852066986,0.34342578,106850.0,106840.0,0.07827]
[1761852067284,0.70522578,106850.0,106840.0,0.07827]
[1761852067486,0.34242578,106850.0,106840.0,0.07827]
[1761852067682,0.60322578,106850.0,106840.0,0.07827]
[1761852067891,0.24242578,106850.0,106840.0,0.07827]
[1761852068185,0.60322578,106850.0,106840.0,0.07827]
[1761852068385,0.60522578,106850.0,106840.0,0.07827]
[1761852068574,0.24442578,106850.0,106840.0,0.07827]
[1761852068771,0.60522578,106850.0,106840.0,0.07827]
[1761852068977,0.24442578,106850.0,106840.0,0.07827]
[1761852069885,0.60522578,106850.0,106840.0,0.07827]
[1761852070183,0.24442578,106850.0,106840.0,0.07827]
[1761852071483,0.24442578,106850.0,106840.0,0.43907]
[1761852071685,0.24442578,106850.0,106840.0,0.07827]
[1761852072280,0.24442578,106850.0,106840.0,0.11188357]
[1761852072987,0.24442578,106850.0,106840.0,0.30917529]
[1761852073283,0.24442578,106850.0,106840.0,0.66997529]
[1761852074195,0.24442578,106850.0,106840.0,0.47268357]
[1761852074385,0.24442578,106850.0,106840.0,0.11188357]
[1761852074582,0.34437518,106850.0,106840.0,0.11188357]
[1761852074983,0.8024669,106850.0,106840.0,0.11188357]
[1761852075191,0.3417175,106850.0,106840.0,0.11188357]
[1761852075386,0.14442578,106850.0,106840.0,0.11188357]
[1761852075895,0.6738,106850.0,106840.0,0.11188357]
[1761852076191,0.313,106850.0,106840.0,0.11188357]
[1761852076394,0.073,106850.0,106840.0,0.11188357]
[1761852077086,0.6938,106850.0,106840.0,0.11188357]
[1761852077292,0.333,106850.0,106840.0,0.11188357]
[1761852077678,0.333,106850.0,106840.0,0.30917529]
[1761852077679,0.083,106850.0,106840.0,0.30917529]
[1761852078084,0.05822,106840.0,106830.0,0.70446626]
[1761852078289,0.07822,106840.0,106830.0,0.70446626]
[1761852078485,0.05822,106840.0,106830.0,0.70446626]
[1761852078686,0.07822,106840.0,106830.0,0.34366626]
[1761852078895,0.07822,106840.0,106830.0,0.70446626]
[1761852079391,0.05822,106840.0,106830.0,0.70446463]
[1761852079590,0.07822,106840.0,106830.0,0.70446463]
[1761852080895,0.07822,106840.0,106830.0,0.50717454]
[1761852081094,0.27576009,106840.0,106830.0,0.50717454]
[1761852081391,0.12000182,106840.0,106830.0,0.70446463]
[1761852081596,0.09847,106840.0,106830.0,0.34366463]
[1761852081787,0.11999603,106840.0,106830.0,0.27588601]
[1761852081992,0.31728612,106840.0,106830.0,0.27588601]
[1761852082196,0.29703612,106840.0,106830.0,0.29443601]
[1761852082497,0.59925009,106850.0,106840.0,0.08142]
[1761852082690,0.74196,106850.0,106840.0,0.27871009]
[1761852082999,0.38116,106850.0,106840.0,0.27871009]
[1761852083783,0.38316,106850.0,106840.0,0.27871009]
[1761852083988,0.06316,106850.0,106840.0,0.27871009]
[1761852084189,0.32316,106850.0,106840.0,0.63951009]
[1761852084391,0.32416,106850.0,106840.0,0.27871009]
[1761852085198,0.32416,106850.0,106840.0,0.63951009]
[1761852085500,0.32416,106850.0,106840.0,0.27871009]
[1761852085901,0.32316,106850.0,106840.0,0.27871009]
[1761852086296,0.32116,106850.0,106840.0,0.27871009]
[1761852086497,0.32116,106850.0,106840.0,0.63951009]
[1761852086901,0.32116,106850.0,106840.0,0.83680018]
[1761852087200,0.32116,106850.0,106840.0,0.44222]
[1761852087399,0.04116,106840.0,106830.0,1.00422463]
[1761852087701,0.31664176,106840.0,106830.0,1.03630463]
[1761852087892,0.31664176,106840.0,106830.0,0.98591601]
[1761852088287,0.51393185,106840.0,106830.0,0.98591601]
[1761852088693,0.97468125,106840.0,106830.0,0.10262592]
[1761852089107,1.17197134,106840.0,106830.0,0.02120592]
[1761852089295,1.19695903,106840.0,106830.0,0.02220592]
[1761852089503,1.52215903,106840.0,106830.0,0.02220592]
[1761852089701,0.03212,106810.0,106800.0,0.68989871]
[1761852089902,0.33941009,106810.0,106800.0,0.68989871]
[1761852090095,0.14212,106810.0,106800.0,0.68989871]
[1761852090297,0.14212,106810.0,106800.0,0.32909871]
[1761852090804,0.14212,106810.0,106800.0,0.68989871]
[1761852091410,0.88021009,106810.0,106800.0,0.08142]
[1761852091594,0.03212,106800.0,106790.0,0.32909871]
[1761852091798,0.40941009,106800.0,106790.0,0.32909871]
[1761852092000,0.41072522,106800.0,106790.0,0.27871009]
[1761852092197,0.41072522,106800.0,106790.0,0.08142]
[1761852092398,0.01606,106790.0,106780.0,0.65781871]
[1761852092601,0.07212,106790.0,106780.0,0.60743009]
[1761852092805,0.27204072,106790.0,106780.0,0.63951009]
[1761852093310,0.34475063,106790.0,106780.0,0.08142]
[1761852093504,0.34475063,106790.0,106780.0,0.09491291]
[1761852093709,0.34475063,106790.0,106780.0,0.09691291]
[1761852094004,0.08475063,106790.0,106780.0,0.44422]
[1761852094403,0.08475063,106790.0,106780.0,0.44522]
[1761852094608,0.02,106790.0,106780.0,1.294931]
[1761852094796,0.39292,106810.0,106800.0,0.08142]
[1761852094997,0.37347264,106810.0,106800.0,0.08142]
[1761852095510,0.35212,106810.0,106800.0,0.08142]
[1761852095704,0.71292,106810.0,106800.0,0.08142]
[1761852096110,0.71492,106810.0,106800.0,0.08142]
[1761852096305,0.03212,106800.0,106790.0,0.44222]
[1761852096512,0.08212,106800.0,106790.0,0.08142]
[1761852096712,0.08343513,106800.0,106790.0,0.08142]
[1761852097006,0.03212,106790.0,106780.0,0.08142]
[1761852097208,0.12212,106790.0,106780.0,0.45569778]
[1761852097404,0.09263063,106790.0,106780.0,0.689131]
[1761852097604,0.00263063,106790.0,106780.0,0.689131]
[1761852097810,0.02,106790.0,106780.0,0.691931]
[1761852098105,0.02,106790.0,106780.0,0.689131]
[1761852098918,0.09021372,106800.0,106790.0,0.06287]
[1761852099106,0.19021372,106800.0,106790.0,0.42367]
[1761852099306,0.2089041,106800.0,106790.0,0.42367]
[1761852099503,0.2179041,106800.0,106790.0,0.06287]
[1761852100013,0.1597161,106800.0,106790.0,0.42367]
[1761852100507,0.23313931,106800.0,106790.0,0.42367]
[1761852100714,0.23413931,106800.0,106790.0,0.42367]
[1761852101104,0.23413931,106800.0,106790.0,0.44222]
[1761852101911,0.1285961,106800.0,106790.0,0.689131]
[1761852102498,0.0507161,106800.0,106790.0,0.3608]
[1761852102703,0.03212,106790.0,106780.0,0.08142]
[1761852102903,0.35212,106790.0,106780.0,0.0948854]
[1761852103103,0.35343538,106790.0,106780.0,0.44222]
[1761852103310,0.32131538,106790.0,106780.0,0.689131]
[1761852103508,0.00131538,106790.0,106780.0,0.689131]
[1761852103699,0.02131538,106790.0,106780.0,0.689131]
[1761852103904,0.02131538,106790.0,106780.0,0.690131]
[1761852104213,0.00131538,106790.0,106780.0,0.692931]
[1761852104408,0.00131538,106790.0,106780.0,1.292931]
[1761852104617,0.01496572,106800.0,106790.0,0.08142]
[1761852104806,0.36708572,106800.0,106790.0,0.08142]
[1761852105005,0.3697161,106800.0,106790.0,0.08142]
[1761852105804,0.3707161,106800.0,106790.0,0.08142]
[1761852106513,0.7315161,106800.0,106790.0,0.08142]
[1761852107117,0.80715646,106800.0,106790.0,0.08142]
[1761852107308,0.90710586,106800.0,106790.0,0.08142]
[1761852107908,0.90710586,106800.0,106790.0,0.01855]
[1761852108104,0.80710586,106800.0,106790.0,0.0628111]
[1761852108304,0.34635646,106800.0,106790.0,0.08142]
[1761852108511,0.36766677,106800.0,106790.0,0.08142]
[1761852108710,0.34635646,106800.0,106790.0,0.44222]
[1761852108912,0.34635646,106800.0,106790.0,0.328331]
[1761852108913,0.33029646,106800.0,106790.0,0.328331]
[1761852109116,0.33029646,106800.0,106790.0,0.44222]
[1761852109613,0.01744806,106800.0,106790.0,0.689131]
[1761852110119,0.03744806,106800.0,106790.0,0.689131]
[1761852110315,0.01744806,106800.0,106790.0,0.44222]
[1761852110512,0.03744806,106800.0,106790.0,0.44222]
[1761852110707,0.01744806,106800.0,106790.0,0.44222]
[1761852111013,0.35744806,106800.0,106790.0,0.44222]
[1761852114015,0.35744806,106800.0,106790.0,0.689131]
[1761852114207,0.06744806,106800.0,106790.0,0.328331]
[1761852114411,0.06744806,106800.0,106790.0,0.689131]
[1761852114914,0.06744806,106800.0,106790.0,0.44222]
[1761852115219,0.03744806,106800.0,106790.0,0.689131]
[1761852115407,0.18728444,106810.0,106800.0,0.0857]
[1761852115613,0.51668647,106810.0,106800.0,0.0857]
[1761852115812,0.49534149,106810.0,106800.0,0.0857]
[1761852116013,0.28858242,106810.0,106800.0,0.4465]
[1761852116212,0.29084242,106810.0,106800.0,0.4465]
[1761852116520,0.29284242,106810.0,106800.0,0.4465]
[1761852116721,0.29384242,106810.0,106800.0,0.4465]
[1761852117115,0.67600841,106810.0,106800.0,0.0857]
[1761852117315,0.31520841,106810.0,106800.0,0.0857]
[1761852117519,0.50520841,106810.0,106800.0,0.0857]
[1761852117723,0.52986106,106810.0,106800.0,0.0857]
[1761852118014,0.89066106,106810.0,106800.0,0.0857]
[1761852118321,0.47043884,106810.0,106800.0,0.0857]
[1761852119422,0.47043884,106810.0,106800.0,0.4465]
[1761852119723,0.47043884,106810.0,106800.0,0.0857]
[1761852120226,0.47043884,106810.0,106800.0,0.4465]
[1761852120717,0.22930884,106810.0,106800.0,0.4465]
[1761852120927,0.08760692,106810.0,106800.0,0.693411]
[1761852121222,0.08873692,106810.0,106800.0,0.693411]
[1761852121417,0.32986692,106810.0,106800.0,0.693411]
[1761852121615,0.32760692,106810.0,106800.0,0.693411]
[1761852122529,0.32560692,106810.0,106800.0,0.693411]
[1761852122820,0.22673692,106810.0,106800.0,0.4465]
[1761852123324,0.22673692,106810.0,106800.0,0.4485]
[1761852123618,0.22560692,106810.0,106800.0,0.4485]
[1761852123824,0.07711489,106820.0,106810.0,0.0857]
[1761852124020,0.35711489,106820.0,106810.0,0.0857]
[1761852124215,0.35711489,106820.0,106810.0,0.4465]
[1761852124421,0.28226,106820.0,106810.0,0.4465]
[1761852124722,0.28226,106820.0,106810.0,0.0857]
[1761852124912,0.48225414,106820.0,106810.0,0.4465]
[1761852125517,0.58220354,106820.0,106810.0,0.4465]
[1761852125924,0.49607969,106820.0,106810.0,0.4465]
[1761852126620,0.49381969,106820.0,106810.0,0.4465]